bitfinex/quotes_BTCUSD_20260310
["timestamp","ask_amount","ask_price","bid_price","bid_amount"]
[1773166078198,0.00022001,70798.0,70785.0,0.07063623]
[1773166078396,0.00022001,70798.0,70785.0,0.07207623]
[1773166078962,0.00022001,70798.0,70786.0,0.00144]
[1773166079155,0.03,70797.0,70784.0,0.00144]
[1773166079759,0.03,70795.0,70781.0,0.00144]
[1773166080003,0.05361164,70793.0,70781.0,0.00144]
[1773166080348,0.00022001,70798.0,70782.0,0.00408127]
[1773166080526,0.07082308,70819.0,70783.0,0.02736884]
[1773166080527,0.00144,70802.0,70783.0,0.02736884]
[1773166081820,0.00144,70802.0,70785.0,0.02328763]
[1773166082021,0.00144,70802.0,70787.0,0.02328763]
[1773166082215,0.00144,70802.0,70789.0,0.02328763]
[1773166083504,0.03,70801.0,70788.0,0.00552091]
[1773166083941,0.03,70801.0,70789.0,0.07063244]
[1773166084108,0.03,70801.0,70789.0,0.09536007]
[1773166084304,0.03,70801.0,70790.0,0.00408079]
[1773166084557,0.03166001,70802.0,70790.0,0.00408079]
[1773166084753,0.03166001,70802.0,70791.0,0.02328763]
[1773166085093,0.00022001,70810.0,70788.0,0.01545295]
[1773166085094,0.08171605,70808.0,70788.0,0.01545295]
[1773166085345,0.08171605,70808.0,70767.0,0.0706544]
[1773166085346,0.03,70798.0,70767.0,0.0706544]
[1773166085564,0.03,70792.0,70775.0,0.00023]
[1773166085729,0.03,70790.0,70775.0,0.00023]
[1773166085928,0.10063344,70788.0,70775.0,0.00023]
[1773166086116,0.12424508,70788.0,70775.0,0.00023]
[1773166086653,0.12424508,70788.0,70764.0,0.0004251]
[1773166086654,0.03,70786.0,70764.0,0.0004251]
[1773166086858,0.07063344,70788.0,70764.0,0.0004251]
[1773166086859,0.03,70780.0,70764.0,0.0004251]
[1773166087004,0.03,70776.0,70764.0,0.0004251]
[1773166087211,0.07063344,70788.0,70762.0,0.0002]
[1773166087212,0.03,70772.0,70762.0,0.0002]
[1773166087534,0.03,70764.0,70755.0,0.0004235]
[1773166087744,0.24213169,70768.0,70742.0,0.02328763]
[1773166087745,0.03,70760.0,70750.0,0.87124527]
[1773166087955,0.03,70760.0,70740.0,1e-08]
[1773166087956,0.03,70756.0,70740.0,1e-08]
[1773166088122,0.03,70752.0,70740.0,1e-08]
[1773166088467,0.03,70752.0,70745.0,0.0706758]
[1773166088623,0.03,70752.0,70746.0,0.00052461]
[1773166088825,0.00144,70751.0,70746.0,0.00052461]
[1773166089227,0.03144,70751.0,70746.0,0.00052461]
[1773166090172,0.03,70750.0,70746.0,0.00052461]
[1773166090383,0.05361164,70750.0,70746.0,0.00052461]
[1773166090550,0.03,70746.0,70740.0,1e-08]
[1773166090883,0.03,70746.0,70740.0,0.07079372]
[1773166091078,0.03,70746.0,70740.0,0.00011249]
[1773166091692,0.03144,70751.0,70746.0,0.0002]
[1773166092109,0.07066504,70757.0,70746.0,0.0002]
[1773166092260,0.00144,70751.0,70746.0,0.0002]
[1773166092467,0.02361164,70774.0,70747.0,0.02328763]
[1773166092766,0.03,70773.0,70747.0,0.02328763]
[1773166093080,0.03,70773.0,70748.0,0.640699]
[1773166093286,0.03,70773.0,70748.0,0.02328763]
[1773166093588,0.03,70772.0,70750.0,0.02328763]
[1773166093997,0.03,70772.0,70752.0,0.02328763]
[1773166094314,0.00144,70779.0,70752.0,0.02328763]
[1773166094454,0.00022001,70784.0,70754.0,0.640699]
[1773166094655,0.00022001,70784.0,70755.0,0.02328763]
[1773166094987,0.00144,70783.0,70755.0,0.02328763]
[1773166095182,0.00144,70783.0,70757.0,0.02328763]
[1773166095390,0.03144,70783.0,70759.0,0.02328763]
[1773166095588,0.03144,70783.0,70761.0,0.02328763]
[1773166095785,0.03144,70783.0,70762.0,0.02472763]
[1773166096366,0.03,70782.0,70764.0,0.02328763]
[1773166096734,0.00022001,70784.0,70764.0,0.02328763]
[1773166096871,0.00022001,70784.0,70764.0,0.02340011]
[1773166097067,0.07063843,70783.0,70764.0,0.02340011]
[1773166097273,0.03022001,70784.0,70764.0,0.02340011]
[1773166098217,0.03022001,70784.0,70765.0,0.00144]
[1773166098218,0.03,70782.0,70765.0,0.00144]
[1773166098425,0.03,70780.0,70766.0,0.07065539]
[1773166098827,0.03,70780.0,70767.0,0.02328763]
[1773166099574,0.00022001,70784.0,70767.0,0.02328763]
[1773166099961,0.07085148,70800.0,70766.0,0.07065539]
[1773166099962,0.00023,70800.0,70781.0,0.02589008]
[1773166100117,0.02478583,70807.0,70780.0,0.1599093]
[1773166100118,0.00144,70807.0,70783.0,0.02589008]
[1773166100305,0.01111712,70810.0,70784.0,0.07063743]
[1773166100506,0.00144,70807.0,70785.0,0.02589008]
[1773166100952,0.03,70803.0,70786.0,0.00144]
[1773166101676,0.00144,70806.0,70787.0,0.02589008]
[1773166101837,0.03,70809.0,70787.0,0.02589008]
[1773166102042,0.08172935,70810.0,70786.0,0.00144]
[1773166102043,0.01111712,70810.0,70791.0,0.02589008]
[1773166102226,0.03040583,70824.0,70792.0,0.02589008]
[1773166102227,0.00144,70822.0,70792.0,0.02589008]
[1773166102433,0.07203993,70822.0,70795.0,0.02589008]
[1773166102767,0.03040583,70824.0,70795.0,0.02589008]
[1773166103018,0.03,70823.0,70797.0,0.02589008]
[1773166103389,0.03022001,70819.0,70797.0,0.02589008]
[1773166103596,0.03022001,70819.0,70798.0,0.00144]
[1773166103756,0.03022001,70819.0,70799.0,0.02589008]
[1773166103956,0.03037001,70817.0,70799.0,0.02589008]
[1773166104375,0.03037001,70817.0,70800.0,0.07062146]
[1773166104583,0.1009749,70817.0,70800.0,0.07062146]
[1773166104845,0.1009749,70817.0,70797.0,0.001]
[1773166104846,0.03,70814.0,70797.0,0.001]
[1773166105124,0.03,70803.0,70789.0,0.00144]
[1773166105286,0.03,70801.0,70787.0,0.00144]
[1773166106281,0.00037484,70803.0,70787.0,0.00144]
[1773166106739,0.03037484,70803.0,70788.0,0.07063344]
[1773166106945,0.10099352,70803.0,70787.0,0.07063344]
[1773166107122,0.03,70799.0,70786.0,0.00144]
[1773166107868,0.03,70799.0,70787.0,0.0002]
[1773166108171,0.03,70798.0,70787.0,0.0002]
[1773166108720,0.03,70798.0,70787.0,0.07083373]
[1773166109140,0.03,70797.0,70787.0,0.0002]
[1773166109736,0.03,70797.0,70787.0,0.07083424]
[1773166110159,0.03,70796.0,70787.0,0.07083424]
[1773166111059,0.03,70796.0,70787.0,0.0002]
[1773166111226,0.03,70796.0,70764.0,0.07085724]
[1773166111227,0.03,70792.0,70764.0,0.07085724]
[1773166111432,0.03,70786.0,70774.0,0.07064717]
[1773166111738,0.03,70786.0,70775.0,0.07087637]
[1773166112184,0.03,70786.0,70775.0,0.00023]
[1773166112383,0.03,70786.0,70775.0,0.0708758]
[1773166112545,0.03,70785.0,70775.0,0.0708758]
[1773166112739,0.16012931,70810.0,70775.0,0.0708758]
[1773166112740,0.00022001,70810.0,70776.0,0.33409756]
[1773166112948,0.00144,70795.0,70778.0,0.07064342]
[1773166113156,0.00144,70795.0,70779.0,0.00144]
[1773166113376,0.07062404,70798.0,70779.0,0.00144]
[1773166113575,0.03,70797.0,70779.0,0.00144]
[1773166114303,0.07206404,70798.0,70778.0,0.07064342]
[1773166114304,0.03,70795.0,70778.0,0.07064342]
[1773166114507,0.03,70791.0,70777.0,0.07064375]
[1773166114734,0.03,70787.0,70775.0,0.00023]
[1773166114872,0.00144,70790.0,70756.0,0.0002]
[1773166114873,0.03,70783.0,70756.0,0.0002]
[1773166115067,0.03,70777.0,70763.0,0.07065835]
[1773166115683,0.00144,70776.0,70763.0,0.07065835]
[1773166115905,0.00144,70776.0,70764.0,0.07085713]
[1773166116419,0.00144,70776.0,70764.0,0.07096948]
[1773166117571,0.02478583,70785.0,70764.0,0.07096948]
[1773166117700,0.00144,70782.0,70765.0,0.02589008]
[1773166118731,0.00144,70782.0,70764.0,0.07096948]
[1773166120042,0.1020797,70782.0,70764.0,0.07096948]
[1773166120252,0.05478583,70780.0,70765.0,0.00144]
[1773166120901,0.05478583,70780.0,70764.0,0.07096948]
[1773166120902,0.03,70780.0,70764.0,0.00031235]
[1773166121101,0.03,70776.0,70764.0,0.00031235]
[1773166121416,0.03,70776.0,70764.0,0.0709697]
[1773166121825,0.00144,70782.0,70765.0,0.02589008]
[1773166122034,0.00144,70782.0,70766.0,0.02733008]
[1773166122539,0.03,70781.0,70766.0,0.02733008]
[1773166123749,0.03,70780.0,70766.0,0.02733008]
[1773166124251,0.03,70778.0,70767.0,0.0720944]
[1773166125200,0.03,70778.0,70766.0,0.00144]
[1773166125404,0.03,70777.0,70764.0,0.07096969]
[1773166125604,0.07064172,70780.0,70764.0,0.07096969]
[1773166125605,0.03,70775.0,70764.0,0.07096969]
[1773166125812,0.03,70775.0,70764.0,0.07096952]
[1773166126013,0.03,70773.0,70764.0,0.00031235]
[1773166126478,0.03,70773.0,70764.0,0.07096942]
[1773166126760,0.03,70773.0,70756.0,0.0708652]
[1773166126761,0.02478583,70770.0,70756.0,0.0002]
[1773166126922,0.03,70767.0,70756.0,0.07097765]
[1773166127961,0.00144,70769.0,70756.0,0.07097765]
[1773166128195,0.03,70772.0,70757.0,0.02327339]
[1773166129046,0.03144,70773.0,70757.0,0.02327339]
[1773166129246,0.03,70773.0,70758.0,0.00144]
[1773166129458,0.03144,70773.0,70758.0,0.00144]
[1773166130090,0.03,70788.0,70761.0,0.02055834]
[1773166130298,0.00144,70787.0,70761.0,0.02055834]
[1773166130696,0.03,70786.0,70761.0,0.02055834]
[1773166131751,0.00144,70785.0,70761.0,0.02055834]
[1773166131960,0.03,70793.0,70761.0,0.02055834]
[1773166132163,0.03,70791.0,70763.0,0.02055834]
[1773166132546,0.00144,70790.0,70765.0,0.02055834]
[1773166132675,0.03,70791.0,70767.0,0.02055834]
[1773166132895,0.00144,70790.0,70767.0,0.02055834]
[1773166133110,0.03144,70790.0,70767.0,0.02055834]
[1773166133322,0.00144,70789.0,70767.0,0.02055834]
[1773166134233,0.03,70787.0,70768.0,0.0706534]
[1773166134435,0.03,70781.0,70767.0,0.00144]
[1773166134635,0.03,70779.0,70767.0,0.00144]
[1773166135335,0.03,70779.0,70761.0,0.02055834]
[1773166135541,0.03,70779.0,70765.0,0.00144]
[1773166136274,0.03,70776.0,70757.0,0.07066359]
[1773166136510,0.05155436,70774.0,70758.0,0.00144]
[1773166136746,0.05155436,70774.0,70757.0,0.07066359]
[1773166137158,0.05155436,70774.0,70758.0,0.00144]
[1773166137597,0.05155436,70774.0,70759.0,0.00144]
[1773166138299,0.05155436,70774.0,70756.0,0.07241766]
[1773166138300,0.03,70771.0,70756.0,0.07241766]
[1773166138494,0.03,70769.0,70756.0,0.07241766]
[1773166138917,0.03144,70769.0,70756.0,0.00031248]
[1773166139120,0.03144,70769.0,70756.0,0.07097758]
[1773166139356,0.03144,70769.0,70765.0,0.0002]
[1773166139498,0.03,70765.0,70757.0,0.0002]
[1773166139701,0.03,70763.0,70757.0,0.0002]
[1773166140279,0.02155436,70762.0,70749.0,0.0002]
[1773166140459,0.03,70759.0,70749.0,0.0002]
[1773166140806,0.03,70759.0,70750.0,0.07110101]
[1773166141130,0.03,70759.0,70750.0,0.00043]
[1773166141328,0.03,70758.0,70750.0,0.07110115]
[1773166141531,0.00011238,70762.0,70751.0,0.02055834]
[1773166142540,0.00011238,70762.0,70752.0,0.07066938]
[1773166144550,0.03,70765.0,70753.0,0.02055834]
[1773166144752,0.03,70765.0,70753.0,0.02067072]
[1773166145071,0.00144,70769.0,70753.0,0.02067072]
[1773166145252,0.07065177,70770.0,70753.0,0.02067072]
[1773166145459,0.03,70769.0,70753.0,0.02067072]
[1773166146682,0.03,70769.0,70754.0,0.07066738]
[1773166146902,0.03,70768.0,70755.0,0.02055834]
[1773166147313,0.07064567,70776.0,70755.0,0.02055834]
[1773166147513,0.07075198,70793.0,70760.0,0.1599093]
[1773166147514,0.07063315,70789.0,70760.0,0.1599093]
[1773166147689,0.0001233,70793.0,70764.0,0.486265]
[1773166147690,0.00144,70788.0,70764.0,0.486265]
[1773166147857,0.00144,70788.0,70767.0,0.02055834]
[1773166148061,0.00144,70788.0,70769.0,0.02055834]
[1773166148341,0.03,70779.0,70755.0,0.02055834]
[1773166148469,0.03,70773.0,70758.0,0.00144]
[1773166148662,0.00144,70778.0,70758.0,0.00144]
[1773166148663,0.03,70769.0,70758.0,0.00144]
[1773166149090,0.03,70769.0,70754.0,0.07066738]
[1773166149487,0.03,70767.0,70753.0,0.07078075]
[1773166149688,0.03,70767.0,70753.0,0.00011238]
[1773166149890,0.03,70763.0,70753.0,0.00011238]
[1773166150789,0.03,70761.0,70753.0,0.00011238]
[1773166151396,0.06850755,70763.0,70753.0,0.00011238]
[1773166151803,0.03,70762.0,70753.0,0.00011238]
[1773166152625,0.10065944,70762.0,70753.0,0.00011238]
[1773166152813,0.03,70761.0,70753.0,0.00011238]
[1773166153222,0.03,70761.0,70752.0,0.07086913]
[1773166153427,0.00144,70764.0,70753.0,0.02055834]
[1773166153632,0.00144,70764.0,70753.0,0.02067084]
[1773166154448,0.03,70763.0,70753.0,0.0001125]
[1773166154655,0.03,70761.0,70753.0,0.0001125]
[1773166156145,0.03,70761.0,70752.0,0.07086933]
[1773166156352,0.0001125,70761.0,70752.0,0.07086933]
[1773166156921,0.0001125,70761.0,70752.0,0.0657215]
[1773166157122,7.085e-05,70760.0,70752.0,0.0657215]
[1773166159073,7.085e-05,70760.0,70753.0,0.00144]
[1773166159281,7.085e-05,70760.0,70750.0,0.07110134]
[1773166159480,7.085e-05,70760.0,70751.0,0.00144]
[1773166159888,0.01881665,70759.0,70749.0,0.0002]
[1773166160116,7.085e-05,70760.0,70746.0,0.07087494]
[1773166160117,0.04881665,70756.0,70746.0,0.0002]
[1773166160313,0.04881665,70756.0,70741.0,0.01924929]
[1773166160314,0.03,70752.0,70741.0,0.0002]
[1773166160588,0.15991218,70760.0,70741.0,0.0002]
[1773166160589,0.03,70750.0,70741.0,0.0002]
[1773166160801,0.03,70748.0,70741.0,0.0002]
[1773166161087,0.04881665,70748.0,70741.0,0.0002]
[1773166161952,0.04881665,70748.0,70732.0,0.07068842]
[1773166162141,0.04881665,70748.0,70732.0,0.08973771]
[1773166162342,0.00144,70754.0,70733.0,0.01904929]
[1773166162548,0.001,70752.0,70733.0,0.01904929]
[1773166162749,0.00144,70754.0,70733.0,0.01904929]
[1773166163173,0.02036915,70761.0,70735.0,0.01904929]
[1773166163492,0.03,70760.0,70735.0,0.01904929]
[1773166163844,0.00144,70759.0,70735.0,0.01904929]
[1773166164264,0.03144,70760.0,70737.0,0.01904929]
[1773166165476,0.10210198,70760.0,70739.0,0.01904929]
[1773166165803,0.03,70754.0,70737.0,0.07212428]
[1773166166014,0.03,70750.0,70736.0,0.00144]
[1773166166216,0.03,70748.0,70736.0,0.00144]
[1773166166423,0.03,70748.0,70706.0,0.35103537]
[1773166166622,0.00144,70749.0,70715.0,0.07070631]
[1773166166623,0.01881665,70738.0,70715.0,0.07070631]
[1773166166927,0.03,70739.0,70695.0,0.01904929]
[1773166166928,0.03,70727.0,70695.0,0.01904929]
[1773166167139,0.03,70727.0,70684.0,0.00562]
[1773166167140,0.03,70717.0,70693.0,0.04915949]
[1773166167354,0.11085253,70734.0,70700.0,1e-08]
[1773166167355,0.01881665,70712.0,70700.0,1e-08]
[1773166167562,0.01881665,70706.0,70700.0,1e-08]
[1773166167754,0.01881665,70706.0,70684.0,0.00562]
[1773166167755,0.03,70699.0,70684.0,0.00562]
[1773166167988,0.04881665,70697.0,70684.0,0.07635717]
[1773166168169,0.00144,70696.0,70684.0,0.00562]
[1773166168804,0.00562,70740.0,70700.0,0.00023]
[1773166169081,0.00571018,70740.0,70713.0,0.640699]
[1773166169227,0.00571018,70740.0,70711.0,0.31635075]
[1773166169228,0.00571018,70740.0,70716.0,0.01904929]
[1773166169430,0.00571018,70740.0,70721.0,0.01904929]
[1773166169625,0.00023,70750.0,70723.0,0.01904929]
[1773166169835,0.00144,70749.0,70723.0,0.01913947]
[1773166170118,0.03144,70749.0,70723.0,0.01913947]
[1773166171063,0.03,70748.0,70723.0,0.01913947]
[1773166171267,0.03,70748.0,70724.0,0.578164]
[1773166171596,0.0003599,70753.0,70723.0,9.018e-05]
[1773166171597,0.0003599,70753.0,70735.0,0.01904929]
[1773166171741,0.00022001,70763.0,70739.0,0.01904929]
[1773166171947,0.01881665,70749.0,70719.0,0.07070205]
[1773166172153,0.15984133,70750.0,70715.0,0.01904929]
[1773166172154,0.00144,70748.0,70715.0,0.01904929]
[1773166172474,0.03,70747.0,70715.0,0.01904929]
[1773166172680,0.01881665,70746.0,70721.0,0.0002]
[1773166172850,0.03,70745.0,70721.0,0.0002]
[1773166173060,0.04881665,70745.0,70721.0,0.0002]
[1773166173288,0.01881665,70745.0,70721.0,0.0002]
[1773166173521,0.01881665,70745.0,70722.0,0.07069935]
[1773166173522,0.03,70741.0,70722.0,0.07069935]
[1773166173770,0.00144,70740.0,70722.0,0.07069935]
[1773166174879,0.03144,70740.0,70722.0,0.07069935]
[1773166175355,0.03,70736.0,70721.0,0.0002]
[1773166175567,0.03,70732.0,70721.0,0.0002]
[1773166175748,0.00144,70731.0,70721.0,0.0002]
[1773166176151,0.07067087,70751.0,70721.0,0.0709003]
[1773166176353,0.01881665,70746.0,70721.0,0.0709003]
[1773166176627,0.03144,70745.0,70721.0,0.0709003]
[1773166176828,0.03,70745.0,70721.0,0.0709003]
[1773166177142,0.00144,70744.0,70722.0,0.01904929]
[1773166177581,0.03144,70743.0,70723.0,0.07069835]
[1773166177783,0.03,70743.0,70724.0,0.01904929]
[1773166177960,0.00144,70742.0,70724.0,0.01904929]
[1773166178177,0.01881665,70741.0,70723.0,0.07069835]
[1773166178378,0.03,70740.0,70723.0,0.07069835]
[1773166178783,0.03,70740.0,70723.0,0.07169835]
[1773166179038,0.03,70740.0,70721.0,0.0002]
[1773166179039,0.04881665,70740.0,70721.0,0.0002]
[1773166179311,0.04881665,70740.0,70723.0,0.001]
[1773166179564,0.00144,70742.0,70725.0,0.07069635]
[1773166179565,0.03,70739.0,70725.0,0.07069635]
[1773166179936,0.00011251,70748.0,70726.0,0.01904929]
[1773166180111,0.00144,70747.0,70726.0,0.01904929]
[1773166180314,0.00011251,70748.0,70726.0,0.01904929]
[1773166180518,0.00144,70747.0,70726.0,0.01904929]
[1773166180721,0.00022001,70760.0,70731.0,0.212757]
[1773166180959,0.00144,70759.0,70734.0,0.01904929]
[1773166181197,0.00022001,70763.0,70742.0,0.01904929]
[1773166181517,0.00144,70762.0,70743.0,0.07067837]
[1773166181715,0.00144,70762.0,70744.0,0.02048929]
[1773166182119,0.00144,70761.0,70744.0,0.02048929]
[1773166182318,0.00144,70761.0,70744.0,0.00144]
[1773166182559,0.03,70759.0,70741.0,0.07067941]
[1773166184175,0.03,70759.0,70735.0,0.07068636]
[1773166184176,0.10066252,70759.0,70735.0,0.07068636]
[1773166184586,0.03,70757.0,70735.0,0.07068636]
[1773166184798,0.03,70753.0,70732.0,0.38438464]
[1773166185213,0.03,70753.0,70733.0,0.01904929]
[1773166185853,0.00144,70752.0,70733.0,0.01904929]
[1773166186060,0.03,70761.0,70733.0,0.01904929]
[1773166186061,0.00144,70751.0,70733.0,0.01904929]
[1773166186426,0.00144,70751.0,70734.0,0.07068736]
[1773166186984,0.00144,70751.0,70734.0,0.08973665]
[1773166187385,0.03,70758.0,70734.0,0.08973665]
[1773166187588,0.07065527,70767.0,70735.0,0.01976687]
[1773166187789,0.00144,70762.0,70741.0,0.01976687]
[1773166187992,0.00144,70761.0,70743.0,0.01976687]
[1773166188191,0.00144,70761.0,70744.0,0.07067737]
[1773166188466,0.00144,70761.0,70745.0,0.01976687]
[1773166188836,0.00022001,70756.0,70745.0,0.01976687]
[1773166189049,0.03,70766.0,70745.0,0.01976687]
[1773166189252,0.00166001,70763.0,70746.0,0.01837364]
[1773166189451,0.00166001,70763.0,70745.0,0.640699]
[1773166189452,0.00144,70767.0,70751.0,0.01837364]
[1773166189655,0.00144,70767.0,70751.0,0.01981364]
[1773166190096,0.01837091,70766.0,70741.0,0.07067737]
[1773166190315,0.01837091,70766.0,70735.0,0.01837364]
[1773166190316,0.01837091,70764.0,70739.0,0.07068136]
[1773166190521,0.03,70763.0,70739.0,0.07068136]
[1773166190788,0.03,70763.0,70740.0,0.01837364]
[1773166191107,0.00144,70762.0,70740.0,0.15984133]
[1773166191444,0.03144,70762.0,70741.0,0.01837364]
[1773166191796,0.00144,70761.0,70741.0,0.01837364]
[1773166192020,0.00584001,70768.0,70741.0,0.01837364]
[1773166192276,0.00144,70767.0,70741.0,0.01837364]
[1773166192490,0.00584001,70768.0,70743.0,0.01837364]
[1773166192696,0.00584001,70768.0,70742.0,0.07067937]
[1773166192697,0.00144,70767.0,70745.0,0.01837364]
[1773166193122,0.00144,70766.0,70745.0,0.01837364]
[1773166193366,0.00144,70765.0,70745.0,0.01837364]
[1773166193741,0.00584001,70768.0,70750.0,0.15984133]
[1773166193941,0.00584001,70768.0,70744.0,0.00144]
[1773166193942,0.00584001,70768.0,70747.0,0.01837364]
[1773166194581,0.00584001,70768.0,70748.0,0.07211337]
[1773166194582,0.10649377,70768.0,70748.0,0.07211337]
[1773166194784,0.03584001,70768.0,70748.0,0.07211337]
[1773166195756,0.03022001,70767.0,70749.0,0.01837364]
[1773166196607,0.03022001,70767.0,70750.0,0.07067137]
[1773166196809,0.00144,70766.0,70750.0,0.07067137]
[1773166197864,0.03144,70766.0,70750.0,0.07067137]
[1773166198062,0.03144,70766.0,70748.0,0.07211337]
[1773166198063,0.03,70764.0,70748.0,0.07067304]
[1773166198707,0.03,70764.0,70743.0,0.00144]
[1773166198708,0.10065756,70764.0,70743.0,0.00144]
[1773166199111,0.10065756,70764.0,70742.0,0.07067919]
[1773166199342,0.03,70764.0,70743.0,0.00144]
[1773166199468,0.03,70764.0,70743.0,0.01981364]
[1773166200127,0.00144,70765.0,70743.0,0.01981364]
[1773166200342,0.00022001,70767.0,70743.0,0.01981364]
[1773166200476,0.00144,70766.0,70743.0,0.01981364]
[1773166200680,0.00144,70766.0,70745.0,0.01837364]
[1773166200884,0.07209553,70766.0,70745.0,0.01837364]
[1773166201077,0.03,70761.0,70736.0,0.01837364]
[1773166201283,0.03,70761.0,70735.0,0.07068636]
[1773166201284,0.03,70755.0,70722.0,0.0002]
[1773166201490,0.15984133,70760.0,70722.0,0.0002]
[1773166201491,0.03,70747.0,70722.0,0.0002]
[1773166201691,0.15984133,70750.0,70722.0,0.0002]
[1773166201692,0.03,70741.0,70723.0,0.07069833]
[1773166201898,0.03,70741.0,70722.0,0.0002]
[1773166201899,0.00144,70740.0,70727.0,0.07069429]
[1773166202267,0.03,70739.0,70725.0,0.00023]
[1773166202606,0.07068336,70738.0,70725.0,0.07092628]
[1773166202830,0.03,70737.0,70725.0,0.07092606]
[1773166203032,0.03,70737.0,70725.0,0.00023]
[1773166203648,0.07068286,70739.0,70725.0,0.00023]
[1773166203649,0.03,70738.0,70725.0,0.00023]
[1773166203849,0.00144,70736.0,70725.0,0.07092625]
[1773166204027,0.03,70738.0,70725.0,0.07092625]
[1773166204245,0.11047308,70760.0,70725.0,0.07092625]
[1773166204246,0.01837091,70760.0,70725.0,0.07092625]
[1773166204474,0.07087746,70764.0,70736.0,0.01837364]
[1773166204684,0.03,70761.0,70739.0,0.07068236]
[1773166204885,0.00144,70760.0,70740.0,0.01837364]
[1773166205223,0.00022001,70764.0,70742.0,0.01837364]
[1773166205407,0.00166001,70770.0,70751.0,0.01837364]
[1773166205586,0.00166001,70770.0,70753.0,0.01837364]
[1773166205972,0.00144,70768.0,70753.0,0.01837364]
[1773166206177,0.00022001,70770.0,70753.0,0.01837364]
[1773166206396,0.00022001,70770.0,70752.0,0.0014]
[1773166206397,0.03,70769.0,70752.0,0.0014]
[1773166206868,0.03,70769.0,70753.0,0.08904202]
[1773166207068,0.10065248,70769.0,70753.0,0.08904202]
[1773166207293,0.03,70769.0,70753.0,0.08904202]
[1773166207485,0.03,70768.0,70753.0,0.08904202]
[1773166207686,0.03011253,70768.0,70753.0,0.08904202]
[1773166207920,0.03011253,70768.0,70753.0,0.07066838]
[1773166208076,0.00144,70767.0,70754.0,0.01837364]
[1773166208628,0.03,70767.0,70754.0,0.01977364]
[1773166208823,0.03,70767.0,70755.0,0.07066638]
[1773166209556,0.00011253,70768.0,70755.0,0.07066638]
[1773166209557,0.03,70766.0,70755.0,0.07066638]
[1773166209878,0.00144,70765.0,70755.0,0.07066638]
[1773166211346,0.00144,70765.0,70753.0,0.07066638]
[1773166211958,0.00144,70765.0,70747.0,0.01837364]
[1773166211959,0.03,70764.0,70748.0,0.07067276]
[1773166212203,0.10065739,70764.0,70741.0,0.07068036]
[1773166212567,0.10065739,70764.0,70745.0,0.0002]
[1773166213123,0.00144,70763.0,70745.0,0.0002]
[1773166213340,0.03,70761.0,70745.0,0.0002]
[1773166213546,0.03,70761.0,70745.0,0.07087564]
[1773166214279,0.03,70763.0,70746.0,0.01837364]
[1773166214481,0.00022001,70765.0,70746.0,0.01837364]
[1773166214683,0.00022001,70765.0,70745.0,0.07087564]
[1773166214684,0.00022001,70765.0,70748.0,0.01837364]
[1773166215259,0.03,70764.0,70749.0,0.07067237]
[1773166215567,0.03,70764.0,70745.0,0.0002]
[1773166215759,0.03,70764.0,70745.0,0.07087618]
[1773166216492,0.04173743,70764.0,70745.0,0.0002]
[1773166216741,0.04173743,70764.0,70745.0,0.07087611]
[1773166216957,0.03,70764.0,70745.0,0.07087611]
[1773166218339,0.03,70762.0,70745.0,0.0707286]
[1773166218716,0.03,70760.0,70735.0,0.0002]
[1773166219007,0.03,70749.0,70729.0,0.07069138]
[1773166219347,0.00144,70748.0,70730.0,0.07089097]
[1773166219668,0.00144,70748.0,70730.0,0.0002]
[1773166220043,0.00144,70748.0,70730.0,0.07089135]
[1773166220456,0.03,70746.0,70730.0,0.07089135]
[1773166221245,0.03,70746.0,70730.0,0.07074387]
[1773166221669,0.03,70746.0,70730.0,0.07085638]
[1773166221900,0.07066338,70758.0,70731.0,0.01794711]
[1773166222105,0.07066338,70758.0,70733.0,0.01794711]
[1773166222316,0.00144,70757.0,70733.0,0.01779965]
[1773166222539,0.07066538,70756.0,70734.0,0.07068736]
[1773166222838,0.07210538,70756.0,70733.0,0.01794711]
[1773166223078,0.01186533,70749.0,70722.0,0.01814711]
[1773166223315,0.01186533,70747.0,70722.0,0.0002]
[1773166223746,0.01186533,70747.0,70734.0,0.0002]
[1773166224274,0.07067537,70746.0,70734.0,0.0002]
[1773166224469,0.0118336,70745.0,70734.0,0.0002]
[1773166224892,0.00144,70744.0,70734.0,0.0002]
[1773166225110,0.00144,70743.0,70734.0,0.0002]
[1773166225504,0.00144,70742.0,70734.0,0.0002]
[1773166225912,0.07067376,70748.0,70734.0,0.0002]
[1773166226134,0.00144,70747.0,70734.0,0.0002]
[1773166226349,0.07067537,70746.0,70734.0,0.0002]
[1773166227007,0.07078786,70749.0,70734.0,0.0002]
[1773166227008,0.07078496,70749.0,70735.0,0.07068636]
[1773166227154,0.00155249,70749.0,70734.0,0.07088716]
[1773166227353,0.00155249,70749.0,70735.0,0.01794711]
[1773166227564,0.07222522,70749.0,70735.0,0.01794711]
[1773166228340,0.07222522,70749.0,70734.0,0.0012]
[1773166228678,0.01169923,70748.0,70734.0,0.0012]
[1773166229103,0.01169923,70748.0,70734.0,0.0002]
[1773166229631,0.01169923,70748.0,70726.0,0.0002]
[1773166230063,0.07222522,70749.0,70726.0,0.0002]
[1773166230064,0.011636,70739.0,70726.0,0.0002]
[1773166230211,0.00144,70738.0,70726.0,0.0002]
[1773166230418,0.07068436,70737.0,70726.0,0.0002]
[1773166231021,0.07068436,70737.0,70712.0,0.00562]
[1773166231022,0.01160496,70736.0,70712.0,0.00562]
[1773166231447,0.01160496,70736.0,70712.0,0.07632911]
[1773166231610,0.01160496,70736.0,70712.0,0.09427622]
[1773166231816,0.03,70735.0,70712.0,0.07632911]
[1773166232072,0.03,70735.0,70713.0,0.01794711]
[1773166232274,0.03,70735.0,70726.0,0.0002]
[1773166232450,0.00144,70734.0,70726.0,0.0002]
[1773166232776,0.01157649,70748.0,70726.0,0.0002]
[1773166232777,0.07067437,70747.0,70727.0,0.01794711]
[1773166232975,0.03144,70746.0,70727.0,0.01794711]
[1773166233149,0.00144,70745.0,70727.0,0.01794711]
[1773166233537,0.03,70746.0,70727.0,0.01794711]